fUSD/lending_fUSD_20260528
["ID","MTS","AMOUNT","RATE_DAILY","PERIOD"]
[423233466,1779965440000,-500.0,0.00014999,2]
[423233465,1779965440000,-500.0,0.00014999,2]
[423233471,1779965440000,-500.0,0.00014999,2]
[423233461,1779965440000,-500.0,0.00014999,2]
[423233472,1779965440000,-500.0,0.00014999,2]
[423233469,1779965440000,-500.0,0.00014999,2]
[423233470,1779965440000,-500.0,0.00014999,2]
[423233467,1779965440000,-500.0,0.00014999,2]
[423233468,1779965440000,-246.39,0.00014999,2]
[423233513,1779965441000,-4070479.65748591,0.00015,2]
[423233514,1779965441000,-1358.83890646,0.00015,2]
[423233512,1779965441000,-500.0,0.00013699,2]
[423233529,1779965443000,-296.82102635,0.00013699,2]
[423233531,1779965444000,-500.0,0.00013699,2]
[423233530,1779965444000,-203.17897365,0.00013699,2]
[423233533,1779965444000,-500.0,0.00013699,2]
[423233535,1779965444000,-1792.81737065,0.00015,2]
[423233536,1779965444000,-1861.22406109,0.00015,2]
[423233534,1779965444000,-1535.06015558,0.00014524,2]
[423233537,1779965444000,-91787.96846264,0.00015,2]
[423233532,1779965444000,-500.0,0.00013699,2]
[423233552,1779965446000,-587.47848933,0.00014712,2]
[423233554,1779965519000,-150.0,0.00012587,2]
[423233555,1779965572000,-922.726888,0.00013013,2]
[423233556,1779965626000,-166.41,0.00011311,2]
[423233557,1779965679000,-2000.0,0.00013079,2]
[423233558,1779965732000,-211.12212811,0.00013085,2]
[423233559,1779965785000,-180.9,0.00013012,2]
[423233560,1779965838000,-215.50460005,0.0001313,2]
[423233562,1779965892000,-414.93,0.00012983,2]
[423233563,1779965945000,-200.0,0.00013079,2]
[423233564,1779965998000,-2393.94011366,0.00012784,2]
[423233566,1779966025000,168.89,9.606e-05,2]
[423233565,1779966025000,168.89,6.404e-05,2]
[423233567,1779966336000,-150.89,0.00012511,2]
[423233568,1779966389000,-285.0,0.0001259,2]
[423233569,1779966443000,-195.06,0.00012598,2]
[423233576,1779966449000,-159.36556604,0.0001278,2]
[423233575,1779966449000,-500.0,0.0001278,2]
[423233574,1779966449000,-300.0,0.00012779,2]
[423233572,1779966449000,-196.12610297,0.00012691,2]
[423233573,1779966449000,-200.0,0.000127,4]
[423233571,1779966449000,-191.65153977,0.0001268,2]
[423233570,1779966449000,-151.0,0.000126,2]
[423233577,1779966496000,-198.42988793,0.0001278,2]
[423233581,1779966549000,-333.56326007,0.00012779,2]
[423233582,1779966549000,-615.10918032,0.00012779,2]
[423233580,1779966549000,-300.0,0.00012778,2]
[423233579,1779966549000,1000.0,0.00028082,120]
[423233578,1779966549000,-500.0,0.00012779,2]
[423233583,1779966549000,-307.84959831,0.00012779,2]
[423233586,1779966550000,-500.0,0.00012779,2]
[423233584,1779966550000,-500.0,0.00012779,2]
[423233585,1779966550000,-500.0,0.00012779,2]
[423233587,1779966550000,-500.0,0.00012779,2]
[423233588,1779966550000,-500.0,0.00012779,2]
[423233589,1779966550000,-500.0,0.00012779,2]
[423233590,1779966550000,-500.0,0.00012779,2]
[423233591,1779966550000,-500.0,0.00012779,2]
[423233592,1779966550000,-23.45695503,0.00012779,2]
[423233593,1779966603000,-2812.71144622,0.00012497,2]
[423233594,1779966623000,-1200.0,0.00012496,2]
[423233612,1779966632000,-500.0,0.00012778,2]
[423233619,1779966632000,-500.0,0.00012778,2]
[423233617,1779966632000,-500.0,0.00012778,2]
[423233615,1779966632000,-500.0,0.00012778,2]
[423233614,1779966632000,-500.0,0.00012778,2]
[423233621,1779966632000,-154.42316587,0.00012783,2]
[423233623,1779966632000,-207.04599869,0.00012783,2]
[423233625,1779966632000,-551.01073355,0.00012783,2]
[423233618,1779966632000,-500.0,0.00012778,2]
[423233624,1779966632000,-500.0,0.00012783,2]
[423233631,1779966632000,-168.89,0.00012807,2]
[423233622,1779966632000,-500.0,0.00012783,2]
[423233620,1779966632000,-500.0,0.00012778,2]
[423233613,1779966632000,-500.0,0.00012778,2]
[423233598,1779966632000,-1586.26738872,0.00012497,2]
[423233611,1779966632000,-500.0,0.00012778,2]
[423233609,1779966632000,-500.0,0.00012778,2]
[423233608,1779966632000,-500.0,0.00012778,2]
[423233610,1779966632000,-500.0,0.00012778,2]
[423233606,1779966632000,-430.71041856,0.00012778,2]
[423233607,1779966632000,-500.0,0.00012778,2]
[423233604,1779966632000,-500.0,0.00012778,2]
[423233605,1779966632000,-69.28958144,0.00012778,2]
[423233603,1779966632000,-500.0,0.00012778,2]
[423233602,1779966632000,-197.83037207,0.00012497,2]
[423233601,1779966632000,-622.62168528,0.00012497,2]
[423233599,1779966632000,-107.11974505,0.00012497,2]
[423233600,1779966632000,-938.24794265,0.00012497,2]
[423233597,1779966632000,-307.76142001,0.00012497,2]
[423233616,1779966632000,-500.0,0.00012778,2]
[423233632,1779966632000,-600.0,0.000129,4]
[423233630,1779966632000,-400.0,0.000128,4]
[423233629,1779966632000,-22397.10988634,0.00012784,2]
[423233627,1779966632000,-298.93721243,0.00012783,2]
[423233656,1779966632000,-2726.52883703,0.00013484,2]
[423233658,1779966632000,-500.0,0.00012778,2]
[423233659,1779966632000,-193.64956645,0.00013484,2]
[423233657,1779966632000,-500.0,0.00012778,2]
[423233660,1779966632000,-1865.97484225,0.00013484,2]
[423233655,1779966632000,-4066.79958262,0.00013484,2]
[423233654,1779966632000,-500.0,0.00012778,2]
[423233652,1779966632000,-478.6087615,0.00013484,2]
[423233650,1779966632000,-12135.5801565,0.00013484,2]
[423233651,1779966632000,-3036.0,0.00013484,2]
[423233648,1779966632000,-35071.2695549,0.00013484,2]
[423233647,1779966632000,-91484.78434757,0.00013484,2]
[423233649,1779966632000,-5870.60108799,0.00013484,2]
[423233653,1779966632000,-500.0,0.00012778,2]
[423233646,1779966632000,-25612.7277884,0.00013484,2]
[423233628,1779966632000,-5117.30296317,0.00012783,2]
[423233645,1779966632000,-75242.06216261,0.00013484,2]
[423233634,1779966632000,-500.0,0.00013055,2]
[423233633,1779966632000,-215.50460005,0.00012911,2]
[423233644,1779966632000,-500.0,0.00013484,2]
[423233638,1779966632000,-500.0,0.00013329,2]
[423233641,1779966632000,-300.12643968,0.00013468,2]
[423233635,1779966632000,-2000.0,0.00013079,2]
[423233639,1779966632000,-191.4554308,0.00013417,2]
[423233637,1779966632000,-414.93,0.00013308,2]
[423233642,1779966632000,-155.76785627,0.00013484,2]
[423233636,1779966632000,-255.35883445,0.00013284,2]
[423233640,1779966632000,-2894.6,0.00013452,2]
[423233643,1779966632000,-150.0,0.00013484,2]
[423233688,1779966638000,-500.0,0.00013698,2]
[423233684,1779966638000,-500.0,0.00013698,2]
[423233700,1779966638000,-500.0,0.00013698,2]
[423233685,1779966638000,-500.0,0.00013698,2]
[423233686,1779966638000,-500.0,0.00013698,2]
[423233683,1779966638000,-549.8101686,0.00013698,2]
[423233690,1779966638000,-500.0,0.00013698,2]
[423233693,1779966638000,-500.0,0.00013698,2]
[423233694,1779966638000,-500.0,0.00013698,2]
[423233692,1779966638000,-179.56,0.00013698,2]
[423233701,1779966638000,-622.79587639,0.00013698,2]
[423233695,1779966638000,-500.0,0.00013698,2]
[423233696,1779966638000,-500.0,0.00013698,2]
[423233697,1779966638000,-500.0,0.00013698,2]
[423233687,1779966638000,-500.0,0.00013698,2]
[423233691,1779966638000,-500.0,0.00013698,2]
[423233682,1779966638000,-414.93,0.00013632,2]
[423233666,1779966638000,-250.34794467,0.00012778,2]
[423233680,1779966638000,-500.0,0.00013603,2]
[423233664,1779966638000,-500.0,0.00012778,2]
[423233665,1779966638000,-500.0,0.00012778,2]
[423233676,1779966638000,-169.6,0.00013568,2]
[423233668,1779966638000,-500.0,0.00012778,2]
[423233667,1779966638000,-500.0,0.00012778,2]
[423233675,1779966638000,-1678.0,0.00013568,2]
[423233673,1779966638000,-500.0,0.00012778,2]
[423233681,1779966638000,-300.12643962,0.00013627,2]
[423233669,1779966638000,-500.0,0.00012778,2]
[423233670,1779966638000,-500.0,0.00012778,2]
[423233674,1779966638000,-2144462.27471218,0.00013484,2]
[423233672,1779966638000,-500.0,0.00012778,2]
[423233677,1779966638000,-169.6,0.00013568,2]
[423233679,1779966638000,-169.6,0.00013568,2]
[423233678,1779966638000,-169.6,0.00013568,2]
[423233689,1779966638000,-500.0,0.00013698,2]
[423233671,1779966638000,-500.0,0.00012778,2]
[423233699,1779966638000,-500.0,0.00013698,2]
[423233717,1779966638000,-510.9,0.00013698,2]
[423233702,1779966638000,-510.9,0.00013698,2]
[423233731,1779966638000,-500.0,0.00013698,2]
[423233716,1779966638000,-510.9,0.00013698,2]
[423233733,1779966638000,-500.0,0.00013698,2]
[423233737,1779966638000,-500.0,0.00013698,2]
[423233741,1779966638000,-200.0,0.00013699,2]
[423233749,1779966638000,-151.0,0.00013699,2]
[423233738,1779966638000,-500.0,0.00013698,2]
[423233728,1779966638000,-500.0,0.00013698,2]
[423233752,1779966638000,-500.0,0.00013699,2]
[423233744,1779966638000,-151.0,0.00013699,2]
[423233743,1779966638000,-151.0,0.00013699,2]
[423233750,1779966638000,-158.712324,0.00013699,2]
[423233756,1779966638000,-500.0,0.00013699,2]
[423233755,1779966638000,-500.0,0.00013699,2]
[423233746,1779966638000,-151.0,0.00013699,2]
[423233698,1779966638000,-500.0,0.00013698,2]
[423233754,1779966638000,-500.0,0.00013699,2]
[423233726,1779966638000,-500.0,0.00013698,2]
[423233753,1779966638000,-500.0,0.00013699,2]
[423233724,1779966638000,-500.0,0.00013698,2]
[423233734,1779966638000,-500.0,0.00013698,2]
[423233704,1779966638000,-510.9,0.00013698,2]
[423233714,1779966638000,-510.9,0.00013698,2]
[423233703,1779966638000,-510.9,0.00013698,2]
[423233705,1779966638000,-510.9,0.00013698,2]
[423233708,1779966638000,-510.9,0.00013698,2]
[423233707,1779966638000,-510.9,0.00013698,2]
[423233710,1779966638000,-510.9,0.00013698,2]
[423233706,1779966638000,-510.9,0.00013698,2]
[423233709,1779966638000,-510.9,0.00013698,2]
[423233712,1779966638000,-510.9,0.00013698,2]
[423233711,1779966638000,-510.9,0.00013698,2]
[423233718,1779966638000,-525.71063525,0.00013698,2]
[423233715,1779966638000,-510.9,0.00013698,2]
[423233722,1779966638000,-500.0,0.00013698,2]
[423233713,1779966638000,-510.9,0.00013698,2]
[423233720,1779966638000,-500.0,0.00013698,2]
[423233797,1779966639000,-500.0,0.00013784,2]
[423233788,1779966639000,-500.0,0.00013784,2]
[423233787,1779966639000,-500.0,0.00013784,2]
[423233786,1779966639000,-500.0,0.00013784,2]
[423233790,1779966639000,-500.0,0.00013784,2]
[423233789,1779966639000,-500.0,0.00013784,2]
[423233793,1779966639000,-500.0,0.00013784,2]
[423233804,1779966639000,-500.0,0.00013784,2]
[423233792,1779966639000,-500.0,0.00013784,2]
[423233791,1779966639000,-500.0,0.00013784,2]
[423233795,1779966639000,-500.0,0.00013784,2]
[423233806,1779966639000,-500.0,0.00013784,2]
[423233798,1779966639000,-500.0,0.00013784,2]
[423233794,1779966639000,-500.0,0.00013784,2]
[423233799,1779966639000,-500.0,0.00013784,2]
[423233800,1779966639000,-500.0,0.00013784,2]
[423233801,1779966639000,-500.0,0.00013784,2]
[423233803,1779966639000,-226.61703358,0.00013784,2]
[423233805,1779966639000,-500.0,0.00013784,2]
[423233815,1779966639000,-250.0,0.00014058,2]
[423233810,1779966639000,-500.0,0.00013877,2]
[423233809,1779966639000,-800.0,0.000138,5]
[423233785,1779966639000,-456.79764672,0.00013784,2]
[423233796,1779966639000,-500.0,0.00013784,2]
[423233784,1779966639000,-500.0,0.00013784,2]
[423233769,1779966639000,-500.0,0.00013784,2]
[423233780,1779966639000,-500.0,0.00013784,2]
[423233759,1779966639000,-480.0,0.00013746,2]
[423233761,1779966639000,-500.0,0.00013784,2]
[423233763,1779966639000,-500.0,0.00013784,2]
[423233758,1779966639000,-319.34974902,0.00013699,2]
[423233765,1779966639000,-500.0,0.00013784,2]
[423233757,1779966639000,-500.0,0.00013699,2]
[423233764,1779966639000,-500.0,0.00013784,2]
[423233814,1779966639000,-414.93,0.00013957,2]
[423233760,1779966639000,-193.0,0.00013747,2]
[423233768,1779966639000,-500.0,0.00013784,2]
[423233762,1779966639000,-500.0,0.00013784,2]
[423233783,1779966639000,-502.71616997,0.00013784,2]
[423233767,1779966639000,-500.0,0.00013784,2]
[423233772,1779966639000,-500.0,0.00013784,2]
[423233770,1779966639000,-500.0,0.00013784,2]
[423233773,1779966639000,-500.0,0.00013784,2]
[423233774,1779966639000,-500.0,0.00013784,2]
[423233775,1779966639000,-500.0,0.00013784,2]
[423233782,1779966639000,-500.0,0.00013784,2]
[423233778,1779966639000,-500.0,0.00013784,2]
[423233781,1779966639000,-500.0,0.00013784,2]
[423233779,1779966639000,-500.0,0.00013784,2]
[423233777,1779966639000,-500.0,0.00013784,2]
[423233776,1779966639000,-500.0,0.00013784,2]
[423233771,1779966639000,-500.0,0.00013784,2]
[423233816,1779966639000,-157.4,0.00014077,2]
[423233802,1779966639000,-500.0,0.00013784,2]
[423233811,1779966639000,-1100.0,0.000139,5]
[423233841,1779966639000,-1823.0,0.00014373,2]
[423233839,1779966639000,-1823.0,0.00014373,2]
[423233845,1779966639000,-1827.10320481,0.00014373,2]
[423233855,1779966639000,-300.12643962,0.00014741,2]
[423233844,1779966639000,-1823.0,0.00014373,2]
[423233846,1779966639000,-300.12643962,0.00014423,2]
[423233847,1779966639000,-500.0,0.00014425,2]
[423233853,1779966639000,-508.81616211,0.00014699,2]
[423233848,1779966639000,-408.85,0.00014532,2]
[423233850,1779966639000,-300.12643962,0.00014582,2]
[423233852,1779966639000,-180.9,0.00014638,2]
[423233849,1779966639000,-302.85,0.0001455,2]
[423233851,1779966639000,-272.57,0.00014588,2]
[423233856,1779966639000,-157.04,0.00014766,2]
[423233858,1779966639000,-300.12643962,0.000149,2]
[423233857,1779966639000,-181.4518432,0.00014899,2]
[423233860,1779966639000,-180.61,0.00014952,63]
[423233861,1779966639000,-54529.1090951,0.00014995,2]
[423233866,1779966639000,-2977.8593678,0.00014997,2]
[423233863,1779966639000,-510.9,0.00014995,2]
[423233864,1779966639000,-20856.0084608,0.00014996,2]
[423233862,1779966639000,-23006.0184779,0.00014995,2]
[423233865,1779966639000,-824.2804893,0.00014996,2]
[423233808,1779966639000,-300.12643962,0.00013786,2]
[423233859,1779966639000,-2923.01472248,0.000149,2]
[423233842,1779966639000,-1823.0,0.00014373,2]
[423233840,1779966639000,-1823.0,0.00014373,2]
[423233854,1779966639000,-2000.0,0.00014714,2]
[423233836,1779966639000,-1823.0,0.00014373,2]
[423233807,1779966639000,-510.00564185,0.00013784,2]
[423233838,1779966639000,-1823.0,0.00014373,2]
[423233812,1779966639000,-5986.15,0.00013934,2]
[423233817,1779966639000,-300.12643962,0.00014104,2]
[423233818,1779966639000,-500.0,0.00014151,2]
[423233830,1779966639000,-1823.0,0.00014373,2]
[423233820,1779966639000,-414.93,0.00014281,2]
[423233831,1779966639000,-1823.0,0.00014373,2]
[423233819,1779966639000,-300.12643962,0.00014264,2]
[423233822,1779966639000,-1823.0,0.00014373,2]
[423233823,1779966639000,-1823.0,0.00014373,2]
[423233821,1779966639000,-1235.0,0.00014356,2]
[423233813,1779966639000,-300.12643962,0.00013945,2]
[423233824,1779966639000,-1823.0,0.00014373,2]
[423233825,1779966639000,-1823.0,0.00014373,2]
[423233829,1779966639000,-1823.0,0.00014373,2]
[423233835,1779966639000,-1823.0,0.00014373,2]
[423233827,1779966639000,-1823.0,0.00014373,2]
[423233826,1779966639000,-1823.0,0.00014373,2]
[423233832,1779966639000,-1823.0,0.00014373,2]
[423233834,1779966639000,-1823.0,0.00014373,2]
[423233843,1779966639000,-1823.0,0.00014373,2]
[423233837,1779966639000,-1823.0,0.00014373,2]
[423233828,1779966639000,-1823.0,0.00014373,2]
[423233833,1779966639000,-1823.0,0.00014373,2]
[423233906,1779966640000,-200.0,0.00015609,2]
[423233907,1779966640000,-200.0,0.00015609,2]
[423233905,1779966640000,-200.0,0.00015609,2]
[423233903,1779966640000,-385.41367246,0.000155,2]
[423233900,1779966640000,-200.0,0.00015455,2]
[423233895,1779966640000,-200.0,0.00015301,2]
[423233898,1779966640000,-200.0,0.00015455,2]
[423233908,1779966640000,-385.41367246,0.000158,2]
[423233896,1779966640000,-200.0,0.00015301,2]
[423233893,1779966640000,-385.41367246,0.000153,2]
[423233897,1779966640000,-350.13640107,0.00015394,2]
[423233904,1779966640000,-385.41367246,0.000156,2]
[423233909,1779966640000,-160.3,0.00015845,2]
[423233913,1779966640000,-300.0,0.00016,2]
[423233912,1779966640000,-215.50460005,0.00016,3]
[423233910,1779966640000,-385.41367246,0.00016,2]
[423233916,1779966640000,-200.0,0.00016,2]
[423233926,1779966640000,-180.9,0.00016264,2]
[423233917,1779966640000,-3824.920678,0.0001601,2]
[423233915,1779966640000,-227.21135545,0.00016,2]
[423233918,1779966640000,-227.21135545,0.000161,2]
[423233922,1779966640000,-1966.84,0.00016116,2]
[423233919,1779966640000,-2800.50485724,0.0001611,15]
[423233920,1779966640000,-9999.99,0.00016116,2]
[423233891,1779966640000,-200.0,0.0001515,2]
[423233914,1779966640000,-2000.0,0.00016,2]
[423233894,1779966640000,-200.0,0.00015301,2]
[423233869,1779966640000,-208452.351462,0.00014998,2]
[423233892,1779966640000,-200.0,0.0001515,2]
[423233921,1779966640000,-150.99,0.00016116,2]
[423233867,1779966640000,-648.5205625,0.00014998,2]
[423233871,1779966640000,-510.9,0.00014999,2]
[423233878,1779966640000,-428.3647939,0.00015,2]
[423233875,1779966640000,-510.9,0.00014999,2]
[423233873,1779966640000,-510.9,0.00014999,2]
[423233870,1779966640000,-510.9,0.00014999,2]
[423233868,1779966640000,-521.8537638,0.00014998,2]
[423233872,1779966640000,-510.9,0.00014999,2]
[423233877,1779966640000,-1181629.68342234,0.00015,2]
[423233874,1779966640000,-510.9,0.00014999,2]
[423233876,1779966640000,-511.04,0.00014999,2]
[423233879,1779966640000,-1643.32927314,0.00015,30]
[423233880,1779966640000,-539.29600568,0.00015,30]
[423233882,1779966640000,-200.0,0.00015,2]
[423233890,1779966640000,-200.0,0.0001515,2]
[423233886,1779966640000,-151.55341745,0.00015,2]
[423233881,1779966640000,-221.05,0.00015,2]
[423233884,1779966640000,-200.0,0.00015,2]
[423233887,1779966640000,-330.0,0.00015014,3]
[423233885,1779966640000,-150.0,0.00015,2]
[423233883,1779966640000,-200.0,0.00015,2]
[423233888,1779966640000,-900.0,0.00015068,2]
[423233889,1779966640000,-579.2,0.00015138,2]
[423233902,1779966640000,-1657.0,0.00015467,2]
[423233899,1779966640000,-200.0,0.00015455,2]
[423233923,1779966640000,-299.99,0.00016116,4]
[423233973,1779966640000,-932.0,0.00017232,2]
[423233924,1779966640000,-9999.99,0.00016116,2]
[423233954,1779966640000,-727.0,0.00016438,2]
[423233961,1779966640000,-173.78060196,0.00016641,2]
[423233957,1779966640000,-179.92,0.00016496,2]
[423233962,1779966640000,-168.1,0.00016712,2]
[423233955,1779966640000,-732.87213432,0.00016438,2]
[423233959,1779966640000,-13066.99849394,0.000165,2]
[423233958,1779966640000,-6616.87961098,0.000165,2]
[423233963,1779966640000,-1123.0,0.00016789,2]
[423233964,1779966640000,-200.0,0.000169,6]
[423233966,1779966640000,-928.0,0.00016915,2]
[423233965,1779966640000,-3549.0,0.00016915,2]
[423233971,1779966640000,-1098.0,0.00017134,2]
[423233970,1779966640000,-221.05,0.000171,2]
[423233969,1779966640000,-195.06,0.00017036,2]
[423233967,1779966640000,-1412.213,0.00016915,2]
[423233968,1779966640000,-525.0,0.00016915,2]
[423233972,1779966640000,-1225.0,0.00017205,2]
[423233974,1779966640000,-6064.0,0.00017232,2]
[423233976,1779966640000,-428.0,0.0001726,2]
[423233975,1779966640000,-1425.0,0.0001726,2]
[423233977,1779966640000,-310.0309356,0.00017354,2]
[423233979,1779966640000,-150.0,0.00017395,2]
[423233980,1779966640000,-289.487,0.00017395,2]
[423233925,1779966640000,-227.21135545,0.000162,2]
[423233981,1779966640000,-150.549,0.00017395,2]
[423233953,1779966640000,-727.0,0.00016438,2]
[423233956,1779966640000,-900.0,0.00016438,2]
[423233978,1779966640000,-250.0,0.00017395,2]
[423233951,1779966640000,-727.0,0.00016438,2]
[423233960,1779966640000,-1000.0,0.000165,2]
[423233927,1779966640000,-10000.0,0.000163,30]
[423233929,1779966640000,-793.47826507,0.00016438,2]
[423233928,1779966640000,-2000.0,0.00016348,2]
[423233931,1779966640000,-997.0,0.00016438,2]
[423233932,1779966640000,-727.0,0.00016438,2]
[423233934,1779966640000,-727.0,0.00016438,2]
[423233933,1779966640000,-727.0,0.00016438,2]
[423233936,1779966640000,-727.0,0.00016438,2]
[423233937,1779966640000,-727.0,0.00016438,2]
[423233935,1779966640000,-727.0,0.00016438,2]
[423233939,1779966640000,-727.0,0.00016438,2]
[423233930,1779966640000,-3028.7,0.00016438,2]
[423233949,1779966640000,-727.0,0.00016438,2]
[423233952,1779966640000,-727.0,0.00016438,2]
[423233950,1779966640000,-727.0,0.00016438,2]
[423233946,1779966640000,-727.0,0.00016438,2]
[423233941,1779966640000,-727.0,0.00016438,2]
[423233943,1779966640000,-727.0,0.00016438,2]
[423233948,1779966640000,-727.0,0.00016438,2]
[423233944,1779966640000,-727.0,0.00016438,2]
[423233945,1779966640000,-727.0,0.00016438,2]
[423233940,1779966640000,-727.0,0.00016438,2]
[423233938,1779966640000,-727.0,0.00016438,2]
[423233942,1779966640000,-727.0,0.00016438,2]
[423233947,1779966640000,-727.0,0.00016438,2]
[423234028,1779966641000,-150.0,0.00019178,2]
[423234019,1779966641000,-152.0,0.00018986,30]
[423234015,1779966641000,-7438.69,0.0001872,2]
[423234016,1779966641000,-475.92,0.00018736,2]
[423234007,1779966641000,-354.32106925,0.00018402,2]
[423234014,1779966641000,-532.28,0.0001872,2]
[423234011,1779966641000,-500.0,0.00018512,2]
[423234017,1779966641000,-475.92,0.0001895,2]
[423234010,1779966641000,-1544.0,0.00018491,2]
[423234013,1779966641000,-1434.86,0.0001872,2]
[423234027,1779966641000,-475.95,0.00019158,2]
[423234020,1779966641000,-163.12506766,0.00019,2]
[423234018,1779966641000,-475.92,0.00018983,2]
[423234025,1779966641000,-152.0,0.00019015,30]
[423234024,1779966641000,-160.3,0.00019014,2]
[423234021,1779966641000,-723.12825122,0.00019,2]
[423234026,1779966641000,-1230.0,0.0001915,2]
[423234022,1779966641000,-45853.76252045,0.00019,2]
[423234030,1779966641000,-150.0,0.00019178,2]
[423234032,1779966641000,-250.0,0.00019178,2]
[423234031,1779966641000,-210.92564094,0.00019178,2]
[423234033,1779966641000,-250.0,0.00019178,2]
[423234008,1779966641000,-3028.7,0.0001841,2]
[423234029,1779966641000,-150.0,0.00019178,2]
[423234012,1779966641000,-1890.0,0.00018678,2]
[423233996,1779966641000,-169.43,0.00017957,2]
[423234006,1779966641000,-176.23,0.00018356,2]
[423233983,1779966641000,-150.0,0.00017395,2]
[423233982,1779966641000,-150.133,0.00017395,2]
[423233986,1779966641000,-150.458,0.00017395,2]
[423233984,1779966641000,-150.0,0.00017395,2]
[423233985,1779966641000,-150.359,0.00017395,2]
[423233987,1779966641000,-150.0,0.00017395,2]
[423233991,1779966641000,-793.20442286,0.000177,2]
[423233990,1779966641000,-1758.7,0.00017496,2]
[423233993,1779966641000,-180.9,0.00017891,2]
[423234034,1779966641000,-250.0,0.00019178,2]
[423233989,1779966641000,-160.3,0.00017429,2]
[423233992,1779966641000,-1239.59148304,0.0001789,2]
[423233994,1779966641000,-169.43,0.00017957,2]
[423233995,1779966641000,-169.43,0.00017957,2]
[423233999,1779966641000,-196.16173073,0.00018,2]
[423233997,1779966641000,-169.43,0.00017957,2]
[423233998,1779966641000,-2000.0,0.00017983,2]
[423234001,1779966641000,-27594.37541513,0.00018,2]
[423234000,1779966641000,-295.77614399,0.00018,2]
[423234003,1779966641000,-200.0,0.00018,2]
[423234004,1779966641000,-713.226917,0.00018082,2]
[423234005,1779966641000,-367.89138808,0.00018241,2]
[423234002,1779966641000,-350.0,0.00018,2]
[423234009,1779966641000,-1230.0,0.00018465,2]
[423234041,1779966641000,-500.0,0.00019178,2]
[423233988,1779966641000,-1356.0,0.00017395,2]
[423234035,1779966641000,-264.18629754,0.00019178,2]
[423234066,1779966641000,-500.0,0.00019178,2]
[423234064,1779966641000,-500.0,0.00019178,2]
[423234062,1779966641000,-500.0,0.00019178,2]
[423234070,1779966641000,-500.0,0.00019178,2]
[423234069,1779966641000,-500.0,0.00019178,2]
[423234072,1779966641000,-500.0,0.00019178,2]
[423234071,1779966641000,-500.0,0.00019178,2]
[423234074,1779966641000,-500.0,0.00019178,2]
[423234073,1779966641000,-500.0,0.00019178,2]
[423234076,1779966641000,-500.0,0.00019178,2]
[423234075,1779966641000,-500.0,0.00019178,2]
[423234077,1779966641000,-500.0,0.00019178,2]
[423234078,1779966641000,-500.0,0.00019178,2]
[423234079,1779966641000,-500.0,0.00019178,2]
[423234080,1779966641000,-500.0,0.00019178,2]
[423234082,1779966641000,-500.0,0.00019178,2]
[423234085,1779966641000,-500.0,0.00019178,2]
[423234086,1779966641000,-500.0,0.00019178,2]
[423234084,1779966641000,-500.0,0.00019178,2]
[423234088,1779966641000,-500.0,0.00019178,2]
[423234083,1779966641000,-500.0,0.00019178,2]
[423234087,1779966641000,-500.0,0.00019178,2]
[423234037,1779966641000,-500.0,0.00019178,2]